[Event "French-ch Youth U18 2022"]
[Site "Agen"]
[Date "2022.04.18"]
[Round "2.1"]
[White "Briand, Amaury"]
[Black "Girel, Joseph"]
[Result "0-1"]
[ECO "B23"]
[WhiteElo "1878"]
[BlackElo "2394"]
[Annotator "TA"]
[PlyCount "61"]
[EventDate "2022.04.17"]
[EventType "swiss"]
[EventCountry "FRA"]
[SourceTitle "playchess.com"]
[Source "ChessBase"]
[SourceQuality "1"]
[TimeControl "5400+30"]

{[%evp 15,61,15,27,18,14,17,35,0,0,-5,0,-3,0,-35,-20,-33,-29,-39,-25,-52,0,0,0,-41,-47,-144,-139,-143,-147,-103,-49,-87,-37,-58,-60,-40,-53,-322,-319,-439,-442,-421,-397,-565,-508,-29990,-29991,-29997]} 1. e4 c5 {[%emt 0:03:39]} 2. Nc3 {[%emt 0:00:13]} e6 {[%emt 0:02:28]} 3. Nge2 {[%emt 0:00:10]} Nc6 {[%emt 0:00:35]} 4. g3 {[%emt 0:00:06]} d5 {[%emt 0:01:59]} 5. exd5 {[%emt 0:00:03]} exd5 {[%emt 0:00:16]} 6. d4 {[%emt 0:00:21]} cxd4 {[%emt 0:00:38]} 7. Nxd4 {[%emt 0:02:04]} Nf6 {[%emt 0:00:11]} 8. Bg2 {[%emt 0:01:23]} Bg4 {[%emt 0:00:09]} 9. f3 {[%emt 0:01:17] B24: Closed Sicilian: 3 g3 sidelines.} Bd7 {[%emt 0:02:20]} 10. O-O {[%emt 0:02:43]} Bc5 {[%emt 0:04:37] [#]} 11. Be3 $146 {White is slightly better.} ({Predecessor:} 11. Re1+ Kf8 12. Be3 Bb6 13. Qd2 h5 14. Nce2 h4 15. g4 h3 16. Bh1 Ne5 17. Rad1 {1-0 (34) Strick van Linschoten,H-Addicks,J Netherlands 1928}) 11... O-O {Black wants to play ...Qb6.} 12. Kh1 {[%emt 0:09:15] Hoping for Nxc6.} Bb6 {[%emt 0:04:16]} 13. Bf2 {[%emt 0:01:46]} Rc8 {[%emt 0:05:56]} 14. g4 {[%emt 0:01:54]} h6 {[%emt 0:06:25]} 15. Nb3 {[%emt 0:06:23]} Bxf2 {[%emt 0:07:38]} 16. Rxf2 {[%emt 0:00:04]} d4 {[%emt 0:03:17]} 17. Ne2 {[%emt 0:06:36]} Qb6 {[%emt 0:14:36]} (17... d3 $15 18. cxd3 Be6) 18. Nexd4 $11 {[%emt 0:01:29]} a5 {[%emt 0:02:06][%cal Ba7a5,Ba5a4][%mdl 32]} 19. c3 {[%emt 0:06:06]} a4 {[%emt 0:02:23]} 20. Nc1 {[%emt 0:00:31] [#]} (20. Nxc6 $1 $15 Qxf2 21. Ne7+ Kh8 22. Nxc8) 20... Rfe8 $1 $17 {[%emt 0:01:39]} 21. Qd2 {[%emt 0:11:56]} Nxd4 {[%emt 0:03:58]} 22. cxd4 {[%emt 0:00:22]} Bb5 {[%emt 0:00:07] &Nero is much more active.} ({Black should try} 22... Rc4 $17 23. Ne2 Nd5) 23. Bf1 {[%emt 0:04:13]} Bc6 {[%emt 0:04:04]} (23... Bxf1 $17 24. Rxf1 Nd5) 24. Kg1 $15 {[%emt 0:04:32]} Rcd8 $36 {[%emt 0:01:00][%cal Bc8d8,Bd8d4,Bd4f4][%mdl 2080] Black is pushing.} 25. Ne2 {[%emt 0:00:54]} Nd5 {[%emt 0:01:25]} 26. Nc3 $2 {[%emt 0:11:32][%mdl 8192] Loses the game.} (26. Rc1 $15) 26... Ne3 $19 {[%emt 0:01:21]} 27. Re1 {[%emt 0:00:48] [#]} Rxd4 $1 {[%emt 0:01:09]} 28. Qc1 {[%emt 0:00:14]} Re6 {[%emt 0:04:55][%cal Od4g4] And now ...Rxg4+! would win.} 29. Rxe3 {[%emt 0:07:18]} (29. Ne2 $142 Rb4 30. Ng3) 29... Rxe3 {[%emt 0:00:07]} 30. f4 {[%emt 0:00:49] [#]} (30. Qxe3 $19 Rxg4+ 31. fxg4 Qxe3 32. a3) 30... Rxf4 $3 {[%emt 0:00:20][%mdl 512]} 31. Nb1 {Weighted Error Value: White=0.71/Black=0.08 (flawless)} (31. Qd2 Rxg4+) 0-1

[Event "French-ch Youth U18 2022"]
[Site "Agen"]
[Date "2022.04.18"]
[Round "2.2"]
[White "Decuigniere, Tom"]
[Black "Leroi, Matthieu"]
[Result "1/2-1/2"]
[ECO "A88"]
[WhiteElo "2292"]
[BlackElo "1929"]
[Annotator "TA"]
[PlyCount "77"]
[EventDate "2022.04.17"]
[EventType "swiss"]
[EventCountry "FRA"]
[SourceTitle "playchess.com"]
[Source "ChessBase"]
[SourceQuality "1"]
[TimeControl "5400+30"]

{[%evp 22,77,13,6,114,109,112,117,110,114,121,113,192,194,176,191,184,171,183,195,199,193,182,131,134,107,111,103,132,131,135,131,151,151,147,141,143,127,127,127,127,127,127,127,220,208,167,167,162,134,761,766,757,736,734,600,520,482]} 1. d4 {[%emt 0:00:03]} f5 {[%emt 0:00:10]} 2. c4 {[%emt 0:01:26]} Nf6 {[%emt 0:00:31]} 3. Nc3 {[%emt 0:01:04]} d6 {[%emt 0:00:38]} 4. g3 {[%emt 0:01:40]} g6 {[%emt 0:01:17]} 5. Bg2 {[%emt 0:01:00]} Bg7 {[%emt 0:00:42]} 6. Nf3 {[%emt 0:00:58]} O-O {[%emt 0:00:33]} 7. O-O {[%emt 0:00:16]} c6 {[%emt 0:00:18]} 8. d5 {[%emt 0:05:19]} e5 {[%emt 0:02:10]} 9. dxe6 {[%emt 0:00:49]} Bxe6 {[%emt 0:00:11]} 10. Qd3 {[%emt 0:03:44]} Na6 {[%emt 0:17:23]} 11. Bf4 {[%emt 0:04:05]} d5 {[%emt 0:02:17]} 12. Ng5 {[%emt 0:01:15]} Re8 {[%emt 0:05:49] A88: Dutch Defence: Leningrad System: 5 Nf3 0-0 6 0-0 d6 7 Nc3 c6.} (12... Nc5 $11 {keeps the balance.} 13. Qc2 d4) 13. Nxe6 $16 {[%emt 0:03:18] &Bianco is more active.} Rxe6 {[%emt 0:00:02]} 14. cxd5 {[%emt 0:00:51]} Nb4 {[%emt 0:06:29][%csl LRd3,LRd5] White is better.} 15. Qc4 {[%emt 0:01:04]} Nbxd5 {[%emt 0:00:55]} 16. Rad1 {[%emt 0:04:38][%cal Rc3d5] [#]} Qe7 $146 {[%emt 0:04:17]} (16... Rc8 $16) ({Predecessor:} 16... Kh8 17. Nxd5 cxd5 18. Bxd5 Nxd5 19. Rxd5 Qe7 20. Rfd1 Re4 21. Qd3 h6 22. Rd7 Qb4 23. Qd5 Rxe2 24. Rxg7 Qb6 25. Be3 Rxe3 26. Qf7 {1-0 (26) Kuberczyk,C (2177)-Schaefer,M (2001) Kiel 2017}) 17. Rxd5 $18 {[%emt 0:05:00]} (17. Bxd5 cxd5 18. Nxd5 Nxd5 19. Rxd5 (19. Qxd5 Bf6 $16) 19... Re8) 17... cxd5 {[%emt 0:14:57]} 18. Nxd5 {[%emt 0:00:21]} Qf7 {[%emt 0:04:26]} 19. Nxf6+ {[%emt 0:02:14]} ({Don't do} 19. Nc7 Rae8 20. Rc1 (20. Nxe6 Qxe6 21. Qxe6+ Rxe6 $16) (20. Nxe8 Rxe8 21. Qxf7+ Kxf7 $16) (20. Bxb7 Rxe2 21. Qxf7+ Kxf7 $16) 20... Rxe2) 19... Qxf6 {[%emt 0:05:23]} 20. Bd5 {[%emt 0:03:30] A strong pair of Bishops.} Rae8 {[%emt 0:00:30] [#]} 21. Rd1 $1 {[%emt 0:01:36]} Kf8 {[%emt 0:02:37]} 22. Bxe6 {[%emt 0:05:44]} ({Better is} 22. Bd2 $18) 22... Qxe6 $16 {[%emt 0:01:34]} 23. Qxe6 {[%emt 0:01:22]} Rxe6 $18 {[%emt 0:00:07][%mdl 4096] Endgame KRB-KRB} 24. Rd8+ {[%emt 0:04:03]} Ke7 {[%emt 0:05:05]} 25. Rb8 {[%emt 0:00:10]} Rb6 {[%emt 0:03:51]} 26. b3 {[%emt 0:00:05]} a6 {[%emt 0:01:47]} 27. Rc8 {[%emt 0:01:02]} Rc6 {[%emt 0:10:19]} 28. Rxc6 {[%emt 0:00:20]} bxc6 $16 {[%emt 0:00:01] KB-KB} 29. f3 {[%emt 0:00:55][%cal Bf2f3,Bf3e4][%mdl 32]} Ke6 {[%emt 0:01:21]} 30. Kf2 {[%emt 0:00:26]} Kd5 {[%emt 0:01:15]} 31. Ke3 {[%emt 0:00:11]} Bd4+ {[%emt 0:03:02]} 32. Kd3 {[%emt 0:00:06] [#] Hoping for e4+.} Bg1 {[%emt 0:00:11]} (32... Bf6 $16 33. e4+ fxe4+ 34. fxe4+ Ke6) 33. e4+ $18 {[%emt 0:00:36]} fxe4+ {[%emt 0:00:30]} 34. fxe4+ {[%emt 0:00:06]} Ke6 {[%emt 0:00:07]} 35. h3 {[%emt 0:00:10] Be3 is the strong threat.} Kf6 $2 {[%emt 0:01:05][%mdl 8192] A mistake that costs the game.} (35... Bc5 $16 36. Kc4 Bb6) 36. Be3 {[%emt 0:00:43] White is clearly winning.} Bh2 {[%emt 0:00:08]} 37. Bf2 {[%emt 0:00:08]} g5 {[%emt 0:02:49]} 38. Ke3 {[%emt 0:00:14]} h5 {[%emt 0:01:27]} 39. Kf3 {[%emt 0:00:07][%mdl 32768] Weighted Error Value: White=0.11 (very precise) /Black=0.25 (precise) . An unexpected result.} 1/2-1/2

[Event "French-ch Youth U18 2022"]
[Site "Agen"]
[Date "2022.04.18"]
[Round "2.3"]
[White "Rebut, Paul"]
[Black "Mathieu, Phileas"]
[Result "1/2-1/2"]
[ECO "A45"]
[WhiteElo "2001"]
[BlackElo "2323"]
[Annotator "TA"]
[PlyCount "99"]
[EventDate "2022.04.17"]
[EventType "swiss"]
[EventCountry "FRA"]
[SourceTitle "playchess.com"]
[Source "ChessBase"]
[SourceQuality "1"]
[TimeControl "5400+30"]

{[%evp 9,99,0,3,-6,0,0,0,-27,-24,-16,12,5,54,54,60,60,57,45,63,59,65,29,30,0,21,27,37,36,30,32,33,23,28,25,28,27,29,0,16,0,21,21,33,31,40,4,6,4,10,8,8,7,74,69,121,97,193,198,191,203,228,204,188,81,135,149,116,129,135,0,81,66,113,123,121,113,205,168,201,0,0,0,0,0,0,0,0,0,0,0,0,0]} 1. d4 {[%emt 0:00:03]} Nf6 {[%emt 0:00:55]} 2. Bf4 {[%emt 0:00:06]} d6 {[%emt 0:00:24]} 3. Nc3 {[%emt 0:00:08]} Nbd7 {[%emt 0:00:12]} 4. Nf3 {[%emt 0:00:08]} c5 {[%emt 0:00:05]} 5. e3 {[%emt 0:02:46]} g6 {[%emt 0:00:27]} 6. Qd2 {[%emt 0:03:17] A45: Trompowsky Attack.} Bg7 {[%emt 0:00:25]} 7. Be2 {[%emt 0:03:00]} O-O {[%emt 0:05:40]} 8. O-O {[%emt 0:08:54]} a6 {[%emt 0:13:36] [#]} 9. a4 $146 {[%emt 0:03:44][%cal Ba2a4,Ba4a5][%mdl 32]} ({Predecessor:} 9. e4 cxd4 10. Nxd4 e5 11. Nf5 gxf5 12. Bh6 Ne8 13. Nd5 Ndf6 14. Qg5 Be6 15. Bxg7 Nxg7 16. Nxf6+ Kh8 17. Qh6 {1-0 (17) Cheung,J-Laugery,D Mingara 2000}) 9... cxd4 {[%emt 0:09:19]} 10. exd4 {[%emt 0:01:44]} Nb6 {[%emt 0:00:08]} (10... Qc7 $11) 11. a5 $14 {[%emt 0:02:56]} Nbd5 {[%emt 0:00:15]} 12. Nxd5 {[%emt 0:00:13]} Nxd5 {[%emt 0:00:02]} 13. Bh6 {[%emt 0:00:23]} Nf6 {[%emt 0:12:12]} 14. Bxg7 {[%emt 0:04:00] &Bianco is more active.} Kxg7 {[%emt 0:00:02]} 15. Bd3 {[%emt 0:06:29]} Bg4 {[%emt 0:02:34]} 16. Qf4 {[%emt 0:01:12]} Qd7 {[%emt 0:06:49]} 17. Nd2 {[%emt 0:12:23]} Bf5 {[%emt 0:09:11]} 18. Bxf5 {[%emt 0:03:47]} Qxf5 {[%emt 0:00:05]} 19. Qxf5 {[%emt 0:00:05]} gxf5 {[%emt 0:00:07]} 20. Rfe1 {[%emt 0:00:34]} Rfe8 {[%emt 0:06:39]} 21. Ra3 {[%emt 0:18:48]} Rac8 {[%emt 0:00:46]} 22. Rg3+ {[%emt 0:00:34]} Kf8 {[%emt 0:00:20]} 23. c3 {[%emt 0:00:51]} e6 {[%emt 0:08:32]} 24. Kf1 {[%emt 0:01:37]} Ke7 {[%emt 0:01:23]} 25. c4 {[%emt 0:03:16]} Rg8 {[%emt 0:04:27]} 26. Rxg8 {[%emt 0:00:45]} Rxg8 {[%emt 0:02:17][%mdl 4096] Endgame KRN-KRN} 27. b4 {[%emt 0:02:50]} Rc8 {[%emt 0:02:21]} 28. Rb1 {[%emt 0:03:10]} Ne4 {[%emt 0:04:04]} 29. Nxe4 {[%emt 0:00:06]} fxe4 $11 {KR-KR} 30. c5 {[%emt 0:02:23]} e5 {[%emt 0:07:10]} (30... h5 $11 {remains equal.}) 31. dxe5 $16 {[%emt 0:04:12]} dxe5 {[%emt 0:02:53]} ({Black should play} 31... dxc5 $14 32. bxc5 Rc7) 32. Rd1 {[%emt 0:00:26] Strongly threatening Rd5.} Rc6 {[%emt 0:01:30]} (32... f5 $16 {keeps fighting.}) 33. Ke2 $18 {[%emt 0:01:10]} f5 {[%emt 0:00:56]} 34. Rd5 {[%emt 0:01:48]} Re6 {[%emt 0:00:34]} 35. g3 {[%emt 0:00:42]} h5 {[%emt 0:00:48]} 36. Kd2 {[%emt 0:02:58]} (36. Ke3 $18) 36... Ke8 {[%emt 0:00:36]} (36... h4 $142) 37. Kc3 {[%emt 0:00:38]} Ke7 {[%emt 0:00:04]} 38. Kc4 {[%emt 0:02:24]} f4 {[%emt 0:00:01] [#]} 39. Rd1 {[%emt 0:00:08]} ({Much weaker is} 39. gxf4 $6 exf4 40. Rd1 (40. Rxh5 $2 e3 $19) 40... h4 $11) ({White must play} 39. Kc3 $1 $16) 39... Rg6 {[%emt 0:01:12]} (39... Kf6 $1 $11) 40. gxf4 {[%emt 0:02:27]} exf4 {[%emt 0:00:25]} (40... Rg2 $1 $14) 41. Re1 $16 {[%emt 0:00:33]} e3 {[%emt 0:00:43]} 42. fxe3 {[%emt 0:00:06]} fxe3 {[%emt 0:00:28]} (42... f3 $16) 43. Rxe3+ $18 {[%emt 0:00:11]} Kd7 {[%emt 0:00:08]} 44. Re5 $2 {[%emt 0:00:28] [#]} (44. h3 $18) 44... Rg4+ $11 {[%emt 0:00:07] The position is equal.} 45. Kd5 {[%emt 0:01:23]} Rh4 {[%emt 0:00:34]} 46. Rg5 {[%emt 0:02:32][%cal Ob4b5]} Rxh2 {[%emt 0:00:17]} 47. c6+ {[%emt 0:00:48]} bxc6+ {[%emt 0:00:04]} 48. Kc5 {[%emt 0:00:04]} Rc2+ {[%emt 0:01:06]} 49. Kb6 {[%emt 0:00:05]} Rc4 {[%emt 0:00:20]} 50. Rxh5 {[%emt 0:00:15] Weighted Error Value: White=0.16 (very precise) /Black=0.18 (very precise)} 1/2-1/2

[Event "French-ch Youth U18 2022"]
[Site "Agen"]
[Date "2022.04.18"]
[Round "2.4"]
[White "Nottola, Adrien"]
[Black "Arcelin, Gael"]
[Result "0-1"]
[ECO "B33"]
[WhiteElo "2291"]
[BlackElo "1934"]
[Annotator "TA"]
[PlyCount "85"]
[EventDate "2022.04.17"]
[EventType "swiss"]
[EventCountry "FRA"]
[SourceTitle "playchess.com"]
[Source "ChessBase"]
[SourceQuality "1"]
[TimeControl "5400+30"]

{[%evp 24,85,41,5,25,11,2,-21,-21,-21,-18,-19,-29,-34,-34,-33,-48,-36,-41,-33,27,18,62,0,1,16,5,0,0,0,0,-11,-8,-14,0,0,0,-133,-8,-42,-41,-39,69,-48,-61,-72,-50,-70,0,-808,-245,-187,0,-698,0,-610,-592,-643,-637,-637,-178,-29970,739,739]} 1. e4 {[%emt 0:02:26]} c5 {[%emt 0:00:03]} 2. Nf3 {[%emt 0:00:04][%cal Bg1f3,Bf3d4,Bd4b5,Bb5a3,Ba3c2][%mdl 32]} Nc6 {[%emt 0:00:07]} 3. d4 {[%emt 0:00:04]} cxd4 {[%emt 0:00:05]} 4. Nxd4 {[%emt 0:00:05]} Nf6 {[%emt 0:00:01]} 5. Nc3 {[%emt 0:00:08]} e5 {[%emt 0:00:05]} 6. Ndb5 {[%emt 0:00:04]} d6 {[%emt 0:00:06]} 7. Bg5 {[%emt 0:00:05]} a6 {[%emt 0:00:03]} 8. Na3 {[%emt 0:00:13]} b5 {[%emt 0:00:03]} 9. Nd5 {[%emt 0:00:06]} Be7 {[%emt 0:00:06]} 10. Bxf6 {[%emt 0:00:07]} Bxf6 {[%emt 0:00:01]} 11. c3 {[%emt 0:00:09]} Bg5 {[%emt 0:00:06]} 12. Nc2 {[%emt 0:00:49]} Rb8 {[%emt 0:00:05]} 13. a3 {[%emt 0:01:54]} a5 {[%emt 0:05:08] B33: Sicilian: Pelikan and Sveshnikov Variations.} 14. Bd3 {[%emt 0:17:09]} Ne7 {[%emt 0:08:25]} 15. Qe2 {[%emt 0:00:25] [#]} Nxd5 $146 {[%emt 0:03:32] The position is equal.} ({Predecessor:} 15... Bd7 16. Nce3 Bxe3 17. Nxe3 O-O 18. O-O Qc7 19. Kh1 Qc5 20. Rfc1 Rfc8 21. Qd2 {½-½ (49) Lanka,Z (2575)-Schebler,G (2435) Germany 1997}) 16. exd5 {[%emt 0:00:17]} Bd7 {[%emt 0:25:57]} 17. Nd4 {[%emt 0:06:52]} Qb6 {[%emt 0:01:16] Prevents Nc6.} 18. h4 {[%emt 0:30:49]} Be7 {[%emt 0:06:46]} 19. Nf5 {[%emt 0:01:16]} Bxf5 {[%emt 0:00:37]} 20. Bxf5 {[%emt 0:00:02]} g6 {[%emt 0:00:44]} 21. Bc2 {[%emt 0:05:01]} Qc5 {[%emt 0:01:33]} (21... h5 $15) 22. h5 $11 {[%emt 0:03:36]} Kd7 {[%emt 0:00:33]} 23. O-O {[%emt 0:10:00]} (23. Qf3 f5 $15) ({White should try} 23. Bd3 $14) 23... f5 {[%emt 0:01:26]} 24. b4 {[%emt 0:01:19]} Qxc3 {[%emt 0:25:22]} 25. Bd3 {[%emt 0:04:43]} Bg5 $1 {[%emt 0:00:26]} 26. Bxb5+ {[%emt 0:00:43]} Ke7 {[%emt 0:00:01][%cal Bd7e7,Be7f6,Bf6g6][%mdl 32]} 27. Bc6 {[%emt 0:01:26]} axb4 {[%emt 0:04:59] Active counter play!} 28. axb4 {[%emt 0:00:47]} Qxb4 {[%emt 0:00:02]} 29. Ra7+ {[%emt 0:04:18]} Kf6 {[%emt 0:00:34]} 30. Rfa1 {[%emt 0:03:14]} (30. Rd7 $11) 30... h6 {[%emt 0:02:30]} ({Black should play} 30... e4 $17 {With the idea ...Qd4.} 31. g3 Qd2) 31. hxg6 {[%emt 0:03:35]} Kxg6 {[%emt 0:00:17]} 32. Bd7 {[%emt 0:01:16] Threatens to win with R7a4.} Qd4 {[%emt 0:04:12] [#]} (32... h5 $15) 33. Qf3 {[%emt 0:01:47]} (33. Bxf5+ $1 $14 Kxf5 34. Qf3+ Qf4 35. Rf7+ Bf6 36. Qh5+ Qg5 37. g4+ Kf4 38. Ra4+ e4 39. Qh2+ Kxg4 40. Rxf6 $1 {[%mdl 512]} Qxf6 41. Rxe4+ Kf5 42. Rf4+ Kg6 43. Rxf6+ Kxf6 44. Qxd6+ Kg5 45. Qe5+ Kg6 46. Qe4+ Kf6 47. Qe6+ Kg7 48. Qg4+ Kf6 49. Qf4+ Kg6 50. Qe4+ Kg7 51. Qg4+ Kf6 52. Qf4+ Kg6 53. Qe4+) 33... Rhf8 $1 $15 {[%emt 0:00:14]} 34. R7a4 {[%emt 0:00:34]} Rb4 {[%emt 0:02:45]} (34... Qc5 $5 {[%cal Re5e4]}) 35. Ra8 {[%emt 0:01:17] [#]} e4 {[%emt 0:04:10]} 36. Qh3 $2 {[%emt 0:01:13][%mdl 8192] [#]} (36. Qg3 $2 Rxa8 37. Bxf5+ (37. Qxd6+ $2 Kg7 $19) 37... Kxf5 $19) (36. Qa3 $11 e3 37. Rxf8 exf2+ 38. Kf1 Qc4+ 39. Kxf2 Qc5+ 40. Kg3 Rg4+ 41. Kh3 Rh4+ 42. Kg3 Rg4+ 43. Kh3 Rh4+ 44. Kg3 Rg4+) 36... Rb7 $1 {[%emt 0:02:26][%mdl 512]} 37. R8a4 $19 {[%emt 0:00:34]} Rb4 {[%emt 0:01:57]} (37... Qxd5 38. Ra5 Qd4 39. Bxf5+ Kg7 40. R5a4 $17) (37... Qe5 38. Be6 Rb4 $1) 38. Ra8 $1 {[%emt 0:00:27] [#]} Rb7 $2 {[%emt 0:01:30]} 39. Be6 $2 {[%emt 0:00:15][%mdl 8192] [#]} (39. R8a4 $11 Qd3 40. Qxd3 exd3 41. Bc6) 39... e3 $1 {[%emt 0:00:53][%mdl 512] And now ...Rxa8 would win.} 40. fxe3 {[%emt 0:00:45]} (40. R8a3 Rb3) 40... Bxe3+ {[%emt 0:00:41]} ({And not} 40... Qxe3+ 41. Qxe3 Bxe3+ 42. Kf1 $17) 41. Kh1 {[%emt 0:00:20]} Bf4 {[%emt 0:00:39] Against Qg3+} (41... Rxa8 42. Rf1 (42. Qxf5+ $2 Kg7 $19) 42... Kg7 43. Qxf5 Qh4+ 44. Qh3 Ra4) 42. R8a4 {[%emt 0:00:42] [#]} (42. R8a3 $19 Qe4 43. Rf1) 42... Qxa1+ $4 {[%emt 0:00:24][%mdl 8192]} 43. Rxa1 {[%emt 0:00:28][%mdl 32768] Quite a comeback for White.  Weighted Error Value: White=0.73/Black=0.90. Loss on time!?} 0-1